[Event "15e Open International de Quenza"]
[Site "Quenza"]
[Date "2026.07.05"]
[Round "5.15"]
[White "TOMASI, Albert"]
[Black "BERNARDI, Alexandre"]
[Result "1/2-1/2"]
[TimeControl "5min+3s"]
[WhiteTitle "FM"]
[BlackTitle "-"]
[WhiteFideId "-"]
[BlackFideId "-"]
[WhiteElo "2235"]
[BlackElo "1948"]

1. e4 {[%clk 00:05:03]} {[%emt 00:00:01]} c5 {[%clk 00:05:03]} 2. Nf3 {[%clk
00:05:03]} {[%emt 00:00:03]} g6 {[%clk 00:05:03]} 3. d4 {[%clk 00:05:03]}
{[%emt 00:00:01]} cxd4 {[%clk 00:05:03]} {[%emt 00:00:01]} 4. Nxd4 {[%clk
00:05:03]} Bg7 {[%emt 00:00:05]} 5. c4 Nc6 {[%clk 00:04:58]} {[%emt 00:00:07]}
6. Be3 {[%clk 00:05:03]} Nf6 {[%clk 00:04:58]} {[%emt 00:00:03]} 7. Nc3 {[%clk
00:05:03]} Ng4 {[%clk 00:04:58]} {[%emt 00:00:03]} 8. Qxg4 {[%clk 00:05:03]}
{[%emt 00:00:02]} Nxd4 {[%clk 00:04:58]} 9. Qd1 {[%clk 00:05:03]} {[%emt
00:00:02]} Ne6 {[%clk 00:04:58]} 10. Rc1 {[%clk 00:05:03]} Qa5 {[%clk
00:04:55]} {[%emt 00:00:06]} 11. a3 {[%clk 00:05:03]} {[%emt 00:00:03]} d6
{[%clk 00:04:44]} {[%emt 00:00:14]} 12. Bd3 {[%clk 00:05:03]} {[%emt 00:00:01]}
b6 {[%clk 00:04:39]} {[%emt 00:00:09]} 13. O-O {[%clk 00:05:03]} {[%emt
00:00:03]} Bb7 {[%clk 00:04:30]} {[%emt 00:00:11]} 14. Bb1 {[%clk 00:05:03]}
{[%emt 00:00:02]} Rc8 {[%clk 00:04:17]} {[%emt 00:00:16]} 15. Qe2 {[%clk
00:05:03]} {[%emt 00:00:04]} Qh5 {[%clk 00:03:55]} {[%emt 00:00:24]} 16. Qxh5
{[%clk 00:05:03]} {[%emt 00:00:03]} gxh5 {[%clk 00:03:55]} 17. Bd3 {[%clk
00:04:59]} {[%emt 00:00:08]} Rg8 {[%clk 00:03:45]} {[%emt 00:00:13]} 18. b4
{[%clk 00:04:57]} {[%emt 00:00:05]} Bf6 {[%clk 00:03:15]} {[%emt 00:00:33]} 19.
Ne2 {[%clk 00:04:57]} {[%emt 00:00:03]} h4 {[%clk 00:03:07]} {[%emt 00:00:11]}
20. f4 {[%clk 00:04:55]} {[%emt 00:00:04]} h3 {[%clk 00:03:07]} {[%emt
00:00:02]} 21. g3 {[%clk 00:04:55]} Bb2 {[%clk 00:02:52]} {[%emt 00:00:18]} 22.
Rc2 {[%clk 00:04:55]} {[%emt 00:00:01]} Bxa3 23. Ra1 {[%clk 00:04:55]} Bxb4
{[%clk 00:02:52]} {[%emt 00:00:02]} 24. Rxa7 {[%clk 00:04:55]} {[%emt
00:00:01]} Rb8 {[%clk 00:02:39]} {[%emt 00:00:17]} 25. Kf2 {[%clk 00:04:35]}
{[%emt 00:00:23]} Nc5 {[%clk 00:02:15]} {[%emt 00:00:27]} 26. Bxc5 {[%clk
00:04:32]} {[%emt 00:00:07]} Bxc5+ {[%clk 00:02:09]} {[%emt 00:00:09]} 27. Kf1
{[%clk 00:04:32]} b5 {[%clk 00:02:07]} {[%emt 00:00:06]} 28. Ra1 {[%clk
00:04:24]} {[%emt 00:00:10]} b4 {[%clk 00:02:07]} 29. Nc1 {[%clk 00:04:20]}
{[%emt 00:00:07]} f5 {[%clk 00:01:45]} {[%emt 00:00:25]} 30. exf5 {[%clk
00:04:18]} {[%emt 00:00:04]} b3 {[%clk 00:01:19]} {[%emt 00:00:30]} 31. Re2
{[%clk 00:03:46]} {[%emt 00:00:35]} Bg2+ {[%clk 00:01:13]} {[%emt 00:00:09]} 32.
Ke1 {[%clk 00:03:46]} {[%emt 00:00:02]} b2 {[%clk 00:01:11]} {[%emt 00:00:05]}
33. Rb1 {[%clk 00:03:40]} {[%emt 00:00:10]} bxc1=Q+ {[%clk 00:01:08]} {[%emt
00:00:06]} 34. Rxc1 {[%clk 00:03:40]} {[%emt 00:00:02]} Bb4+ {[%clk 00:00:42]}
{[%emt 00:00:29]} 35. Kf2 {[%clk 00:03:39]} {[%emt 00:00:03]} Bc5+ {[%clk
00:00:42]} 36. Ke1 {[%clk 00:03:39]} {[%emt 00:00:01]} Rxg3 {[%clk 00:00:22]}
{[%emt 00:00:22]} 37. hxg3 {[%clk 00:03:39]} {[%emt 00:00:01]} h2 {[%clk
00:00:22]} {[%emt 00:00:01]} 38. Kd2 {[%clk 00:03:39]} h1=Q {[%clk 00:00:06]}
{[%emt 00:00:19]} 39. Rxh1 {[%clk 00:03:39]} {[%emt 00:00:01]} Bxh1 {[%clk
00:00:06]} {[%emt 00:00:01]} 40. f6 {[%clk 00:03:39]} Rb2+ {[%clk 00:00:06]}
{[%emt 00:00:02]} 41. Bc2 {[%clk 00:03:39]} {[%emt 00:00:02]} Bb4+ {[%clk
00:00:06]} {[%emt 00:00:04]} 42. Kc1 {[%clk 00:03:39]} {[%emt 00:00:01]} Ba3
{[%clk 00:00:06]} {[%emt 00:00:03]} 43. Rxe7+ {[%clk 00:03:39]} {[%emt
00:00:01]} Kf8 {[%clk 00:00:06]} 44. Kd2 {[%clk 00:03:37]} {[%emt 00:00:06]}
Bc5 {[%clk 00:00:06]} {[%emt 00:00:03]} 45. Kc3 {[%clk 00:03:36]} {[%emt
00:00:03]} Ra2 {[%clk 00:00:06]} {[%emt 00:00:02]} 46. Bxh7 {[%clk 00:03:36]}
{[%emt 00:00:02]} Ra3+ {[%clk 00:00:06]} {[%emt 00:00:02]} 47. Kc2 {[%clk
00:03:36]} {[%emt 00:00:02]} d5 {[%clk 00:00:05]} {[%emt 00:00:05]} 48. Rc7
{[%clk 00:03:36]} {[%emt 00:00:03]} Ra5 {[%clk 00:00:05]} {[%emt 00:00:03]} 49.
Bg6 {[%clk 00:03:35]} {[%emt 00:00:03]} Be4+ {[%clk 00:00:05]} {[%emt
00:00:03]} 50. Bxe4 {[%clk 00:03:35]} {[%emt 00:00:02]} dxe4 {[%clk 00:00:05]}
51. g4 {[%clk 00:03:33]} {[%emt 00:00:05]} Be3 {[%clk 00:00:05]} 52. Re7 {[%clk
00:03:28]} {[%emt 00:00:08]} Bxf4 {[%clk 00:00:05]} {[%emt 00:00:03]} 53. Rxe4
{[%clk 00:03:28]} Bg5 {[%clk 00:00:05]} 54. Kb3 {[%clk 00:03:22]} {[%emt
00:00:09]} Bxf6 {[%clk 00:00:05]} {[%emt 00:00:02]} 55. Kb4 {[%clk 00:03:22]}
Rg5 {[%clk 00:00:04]} {[%emt 00:00:04]} 56. c5 {[%clk 00:03:22]} {[%emt
00:00:03]} Be7 {[%clk 00:00:04]} 57. Rc4 {[%clk 00:03:22]} Kf7 {[%clk
00:00:04]} {[%emt 00:00:02]} 58. Kb5 {[%clk 00:03:22]} Bxc5 {[%clk 00:00:04]}
59. Rxc5 {[%clk 00:03:22]} {[%emt 00:00:02]} Rxg4 {[%clk 00:00:04]} 60. Rc7+
{[%clk 00:03:22]} Kg6 {[%clk 00:00:04]} {[%emt 00:00:01]} 61. Kc5 {[%clk
00:03:22]} {[%emt 00:00:02]} Rf4 {[%clk 00:00:04]} {[%emt 00:00:01]} 62. Kd5
{[%clk 00:03:22]} Rf5+ {[%clk 00:00:04]} 63. Ke4 {[%clk 00:03:22]} Rf6 {[%clk
00:00:04]} {[%emt 00:00:03]} 64. Rc1 {[%clk 00:03:22]} Kf7 {[%clk 00:00:04]} 65.
Ke5 {[%clk 00:03:22]} {[%emt 00:00:02]} Re6+ {[%clk 00:00:04]} 66. Kd5 {[%clk
00:03:22]} Rf6 {[%clk 00:00:04]} 67. Rc7+ {[%clk 00:03:22]} Kg6 {[%clk
00:00:04]} 68. Ke5 {[%clk 00:03:22]} Rf5+ {[%clk 00:00:04]} {[%emt 00:00:01]}
69. Ke4 {[%clk 00:03:22]} Rf6 {[%clk 00:00:04]} {[%emt 00:00:02]} 70. Rc8
{[%clk 00:03:22]} Kf7 {[%clk 00:00:04]} {[%emt 00:00:02]} 71. Ke5 {[%clk
00:03:22]} {[%emt 00:00:01]} Re6+ {[%clk 00:00:04]} 72. Kf5 {[%clk 00:03:22]}
Rf6+ {[%clk 00:00:04]} {[%emt 00:00:01]} 73. Kg5 {[%clk 00:03:22]} Rg6+ {[%clk
00:00:04]} {[%emt 00:00:01]} 74. Kh5 {[%clk 00:03:22]} Rf6 {[%clk 00:00:04]} 75.
Rc7+ {[%clk 00:03:22]} {[%emt 00:00:01]} Ke6 {[%clk 00:00:04]} 76. Kg5 {[%clk
00:03:22]} Rf5+ {[%clk 00:00:04]} {[%emt 00:00:02]} 77. Kg4 {[%clk 00:03:22]}
Rf6 {[%clk 00:00:04]} {[%emt 00:00:02]} 78. Rc6+ {[%clk 00:03:22]} Kf7 {[%clk
00:00:04]} 79. Rc7+ {[%clk 00:03:22]} {[%emt 00:00:02]} Ke6 {[%clk 00:00:04]}
80. Kg5 {[%clk 00:03:22]} Rf5+ {[%clk 00:00:04]} 81. Kg6 {[%clk 00:03:22]} Rf6
{[%clk 00:00:04]} 82. Kg7 {[%clk 00:03:22]} Rf5 {[%clk 00:00:04]} {[%emt
00:00:03]} 83. Rc8 {[%clk 00:03:22]} {[%emt 00:00:02]} Ke5 {[%clk 00:00:04]}
{[%emt 00:00:01]} 84. Kg6 {[%clk 00:03:22]} {[%emt 00:00:01]} Rf6+ {[%clk
00:00:04]} {[%emt 00:00:01]} 85. Kg5 {[%clk 00:03:22]} Rf5 {[%clk 00:00:04]} 86.
Kg4 {[%clk 00:03:22]} Rf4+ {[%clk 00:00:04]} {[%emt 00:00:01]} 87. Kg3 {[%clk
00:03:22]} {[%emt 00:00:01]} Rf5 {[%clk 00:00:04]} {[%emt 00:00:01]} 88. Re8+
{[%clk 00:03:22]} {[%emt 00:00:02]} Kf6 {[%clk 00:00:04]} {[%emt 00:00:01]} 89.
Kg4 {[%clk 00:03:22]} {[%emt 00:00:02]} Rg5+ {[%clk 00:00:04]} 90. Kf4 {[%clk
00:03:22]} Rf5+ {[%clk 00:00:04]} {[%emt 00:00:01]} 91. Ke4 {[%clk 00:03:22]}
Rg5 {[%clk 00:00:04]} {[%emt 00:00:03]} 92. Ra8 {[%clk 00:03:22]} {[%emt
00:00:03]} Re5+ {[%clk 00:00:04]} {[%emt 00:00:02]} 93. Kf4 {[%clk 00:03:22]}
Rf5+ {[%clk 00:00:04]} {[%emt 00:00:01]} 94. Kg4 {[%clk 00:03:22]} Rg5+ {[%clk
00:00:04]} 95. Kh4 {[%clk 00:03:22]} Re5 {[%clk 00:00:04]} {[%emt 00:00:02]} 96.
Kg4 {[%clk 00:03:22]} {[%emt 00:00:03]} Rg5+ {[%clk 00:00:04]} 97. Kf4 {[%clk
00:03:22]} Rf5+ {[%clk 00:00:04]} 98. Ke3 {[%clk 00:03:22]} Re5+ {[%clk
00:00:04]} 99. Kd4 {[%clk 00:03:22]} Rf5 {[%clk 00:00:04]} {[%emt 00:00:01]}
100. Rg8 {[%clk 00:03:22]} Rg5 {[%clk 00:00:04]} {[%emt 00:00:02]} 101. Rh8
{[%clk 00:03:22]} {[%emt 00:00:03]} Rf5 {[%clk 00:00:04]} {[%emt 00:00:01]} 102.
Rh6+ {[%clk 00:03:20]} {[%emt 00:00:04]} Kg5 {[%clk 00:00:04]} {[%emt
00:00:02]} 103. Rh1 {[%clk 00:03:20]} {[%emt 00:00:01]} Rf4+ {[%clk 00:00:04]}
104. Ke5 {[%clk 00:03:20]} {[%emt 00:00:02]} Rf5+ {[%clk 00:00:04]} 105. Ke6
{[%clk 00:03:20]} Rf6+ {[%clk 00:00:04]} 106. Ke7 {[%clk 00:03:20]} Rf5 {[%clk
00:00:04]} {[%emt 00:00:02]} 107. Rg1+ {[%clk 00:03:20]} {[%emt 00:00:03]} Kf4
{[%clk 00:00:04]} 108. Ke6 {[%clk 00:03:20]} {[%emt 00:00:01]} Re5+ {[%clk
00:00:04]} 109. Kd6 {[%clk 00:03:20]} Rf5 {[%clk 00:00:04]} 110. Ra1 {[%clk
00:02:57]} {[%emt 00:00:26]} Kg5 {[%clk 00:00:04]} {[%emt 00:00:01]} 111. Ke6
{[%clk 00:02:57]} {[%emt 00:00:01]} Rf6+ {[%clk 00:00:04]} 112. Ke5 Rf5+ 113.
Ke4 {[%clk 00:02:57]} {[%emt 00:00:01]} Rf4+ {[%clk 00:00:04]} 114. Ke3 {[%clk
00:02:57]} Rf5 {[%clk 00:00:04]} {[%emt 00:00:01]} 115. Ra4 {[%clk 00:02:57]}
Kf6 {[%clk 00:00:04]} {[%emt 00:00:02]} 116. Ke4 {[%clk 00:02:57]} Re5+ {[%clk
00:00:04]} {[%emt 00:00:01]} 117. Kf4 {[%clk 00:02:57]} Rf5+ {[%clk 00:00:04]}
118. Kg4 {[%clk 00:02:57]} Rg5+ {[%clk 00:00:04]} {[%emt 00:00:03]} 119. Kh4
{[%emt 00:00:02]} Re5 {[%clk 00:00:04]} {[%emt 00:00:01]} 120. Ra6+ {[%clk
00:02:57]} {[%emt 00:00:04]} Re6 {[%clk 00:00:04]} 121. Ra8 {[%clk 00:02:57]}
Ke5 {[%clk 00:00:04]} {[%emt 00:00:01]} 122. Kg5 {[%clk 00:02:57]} {[%emt
00:00:02]} Kd5 {[%clk 00:00:04]} {[%emt 00:00:02]} 123. Ra5+ {[%clk 00:02:57]}
{[%emt 00:00:02]} Ke4 {[%clk 00:00:04]} 124. Ra1 {[%clk 00:02:57]} {[%emt
00:00:02]} Re5+ {[%clk 00:00:04]} {[%emt 00:00:02]} 125. Kg4 {[%clk 00:02:57]}
{[%emt 00:00:01]} Kd5 {[%clk 00:00:04]} 126. Kf4 {[%clk 00:02:57]} Re4+ {[%clk
00:00:04]} 127. Kf5 {[%clk 00:02:57]} Re5 {[%clk 00:00:04]} {[%emt 00:00:02]}
128. Kf6 {[%clk 00:02:57]} Re6+ {[%clk 00:00:04]} 129. Kf7 {[%clk 00:02:57]}
Re5 {[%clk 00:00:04]} {[%emt 00:00:02]} 130. Kf6 {[%clk 00:02:57]} {[%emt
00:00:03]} Re6+ {[%clk 00:00:04]} 131. Kf5 {[%clk 00:02:57]} {[%emt 00:00:01]}
Re5 {[%clk 00:00:04]} 132. Kf4 {[%clk 00:02:57]} Re4+ 133. Kf3 Rd4 {[%clk
00:00:04]} 134. Ra8 {[%clk 00:02:55]} {[%emt 00:00:05]} Ke5 {[%clk 00:00:04]}
{[%emt 00:00:02]} 1/2-1/2

[ePGN "0.1;DGT LiveChess/2.2.11"]

[Event "15e Open International de Quenza"]
[Site "Quenza"]
[Date "2026.07.05"]
[Round "6.11"]
[White "THIBOUS, Mathis"]
[Black "YANKELEVICH, Lev"]
[Result "0-1"]
[TimeControl "5min+3s"]
[WhiteTitle "-"]
[BlackTitle "GM"]
[WhiteFideId "-"]
[BlackFideId "-"]
[WhiteElo "2003"]
[BlackElo "2373"]

1. e4 {[%clk 00:05:03]} e5 {[%clk 00:05:03]} {[%emt 00:00:03]} 2. Nf3 {[%clk
00:05:03]} Nc6 {[%clk 00:05:03]} 3. Nc3 {[%clk 00:05:03]} {[%emt 00:00:02]} Nf6
{[%clk 00:05:03]} {[%emt 00:00:02]} 4. g3 {[%clk 00:05:03]} d5 {[%clk
00:04:50]} {[%emt 00:00:17]} 5. exd5 {[%clk 00:05:03]} {[%emt 00:00:02]} Nd4
{[%clk 00:04:49]} {[%emt 00:00:04]} 6. Bg2 {[%clk 00:04:40]} {[%emt 00:00:27]}
Bc5 {[%clk 00:04:09]} {[%emt 00:00:43]} 7. Nxe5 {[%clk 00:03:48]} {[%emt
00:00:55]} O-O {[%clk 00:03:47]} {[%emt 00:00:26]} 8. O-O {[%clk 00:03:47]}
{[%emt 00:00:03]} Re8 {[%clk 00:03:47]} {[%emt 00:00:01]} 9. Nd3 {[%clk
00:03:45]} {[%emt 00:00:06]} Bg4 {[%clk 00:03:44]} {[%emt 00:00:06]} 10. Qxg4
{[%clk 00:02:59]} {[%emt 00:00:49]} Nxg4 {[%clk 00:03:44]} {[%emt 00:00:02]} 11.
Nxc5 {[%clk 00:02:59]} {[%emt 00:00:02]} Nxc2 {[%clk 00:03:39]} {[%emt
00:00:08]} 12. Rb1 {[%clk 00:02:59]} {[%emt 00:00:01]} Nd4 {[%clk 00:03:39]}
{[%emt 00:00:02]} 13. d3 {[%clk 00:02:41]} {[%emt 00:00:21]} b6 {[%clk
00:03:22]} {[%emt 00:00:19]} 14. N5e4 {[%clk 00:02:26]} {[%emt 00:00:18]} Ne5
{[%clk 00:03:15]} {[%emt 00:00:10]} 15. Rd1 {[%clk 00:02:20]} {[%emt 00:00:09]}
Nef3+ {[%clk 00:03:11]} {[%emt 00:00:06]} 16. Bxf3 {[%clk 00:02:20]} {[%emt
00:00:02]} Nxf3+ {[%clk 00:03:11]} {[%emt 00:00:02]} 17. Kg2 {[%clk 00:02:20]}
{[%emt 00:00:01]} Nd4 {[%clk 00:03:08]} {[%emt 00:00:06]} 18. Bf4 {[%clk
00:01:58]} {[%emt 00:00:24]} h6 {[%clk 00:02:57]} {[%emt 00:00:16]} 19. h4
{[%clk 00:01:58]} {[%emt 00:00:01]} Qd7 {[%clk 00:02:37]} {[%emt 00:00:23]} 20.
Be3 {[%clk 00:01:37]} {[%emt 00:00:24]} Nf5 {[%clk 00:02:37]} {[%emt 00:00:03]}
21. Bf4 {[%clk 00:01:37]} {[%emt 00:00:01]} Ne7 {[%clk 00:02:14]} {[%emt
00:00:26]} 22. d6 {[%clk 00:01:37]} {[%emt 00:00:01]} Ng6 {[%clk 00:02:14]}
{[%emt 00:00:01]} 23. Be3 {[%clk 00:01:06]} {[%emt 00:00:34]} f5 {[%clk
00:02:06]} {[%emt 00:00:11]} 24. Nd2 {[%clk 00:00:53]} {[%emt 00:00:16]} f4
{[%clk 00:02:06]} 25. Bxf4 {[%clk 00:00:47]} {[%emt 00:00:10]} Nxf4+ {[%clk
00:02:06]} {[%emt 00:00:01]} 26. gxf4 {[%clk 00:00:47]} {[%emt 00:00:01]} Qg4+
{[%clk 00:02:06]} {[%emt 00:00:01]} 27. Kh2 {[%clk 00:00:47]} Qxh4+ {[%clk
00:02:06]} {[%emt 00:00:02]} 28. Kg2 {[%clk 00:00:47]} Qg4+ {[%clk 00:02:05]}
{[%emt 00:00:05]} 29. Kh2 {[%clk 00:00:47]} {[%emt 00:00:02]} Qxf4+ {[%clk
00:02:05]} {[%emt 00:00:02]} 30. Kg2 {[%clk 00:00:47]} Qg4+ {[%clk 00:02:05]}
{[%emt 00:00:02]} 31. Kh2 {[%clk 00:00:47]} {[%emt 00:00:01]} Re5 {[%clk
00:02:05]} {[%emt 00:00:01]} 0-1

[Event "15e Open International de Quenza"]
[Site "Quenza"]
[Date "2026.07.05"]
[Round "6.8"]
[White "BONELLI MAESTRACCI, Pierre Joseph"]
[Black "RELANGE, Eloi"]
[Result "1/2-1/2"]
[TimeControl "5min+3s"]
[WhiteTitle "-"]
[BlackTitle "GM"]
[WhiteFideId "-"]
[BlackFideId "-"]
[WhiteElo "2205"]
[BlackElo "2416"]

1. e4 {[%clk 00:05:03]} {[%emt 00:00:01]} c5 {[%clk 00:05:03]} {[%emt
00:00:02]} 2. Nf3 {[%clk 00:05:03]} {[%emt 00:00:01]} Nc6 {[%clk 00:05:03]}
{[%emt 00:00:01]} 3. d4 {[%clk 00:05:03]} cxd4 {[%clk 00:05:03]} {[%emt
00:00:02]} 4. Nxd4 {[%clk 00:05:03]} Nf6 {[%clk 00:05:03]} {[%emt 00:00:02]} 5.
Nc3 {[%clk 00:05:03]} {[%emt 00:00:02]} e5 {[%clk 00:05:03]} {[%emt 00:00:02]}
6. Ndb5 {[%clk 00:05:03]} {[%emt 00:00:03]} d6 {[%clk 00:05:03]} {[%emt
00:00:01]} 7. Bg5 {[%clk 00:05:03]} {[%emt 00:00:04]} a6 {[%clk 00:05:03]}
{[%emt 00:00:02]} 8. Na3 {[%clk 00:05:03]} {[%emt 00:00:01]} b5 {[%clk
00:05:03]} {[%emt 00:00:01]} 9. Nd5 {[%clk 00:05:03]} Be7 {[%clk 00:05:03]}
{[%emt 00:00:02]} 10. Bxf6 {[%clk 00:05:03]} {[%emt 00:00:01]} Bxf6 {[%clk
00:05:03]} 11. c3 {[%clk 00:05:03]} {[%emt 00:00:01]} Rb8 {[%clk 00:05:03]} 12.
Nc2 {[%clk 00:05:03]} {[%emt 00:00:03]} Bg5 {[%clk 00:05:03]} {[%emt 00:00:02]}
13. a4 {[%clk 00:04:54]} {[%emt 00:00:13]} bxa4 {[%clk 00:04:57]} {[%emt
00:00:09]} 14. Ncb4 {[%clk 00:04:54]} Nxb4 {[%clk 00:04:40]} {[%emt 00:00:20]}
15. cxb4 {[%clk 00:04:35]} {[%emt 00:00:22]} O-O {[%clk 00:04:16]} {[%emt
00:00:26]} 16. Qxa4 {[%clk 00:04:15]} {[%emt 00:00:22]} Bb7 {[%clk 00:03:30]}
{[%emt 00:00:50]} 17. Bc4 {[%clk 00:04:12]} {[%emt 00:00:05]} Bxd5 {[%clk
00:03:08]} {[%emt 00:00:26]} 18. Bxd5 {[%clk 00:04:12]} {[%emt 00:00:02]} Qb6
{[%clk 00:03:07]} {[%emt 00:00:03]} 19. O-O {[%clk 00:04:12]} {[%emt 00:00:03]}
Qxb4 {[%clk 00:03:05]} {[%emt 00:00:06]} 20. Qxb4 {[%clk 00:04:12]} {[%emt
00:00:01]} Rxb4 {[%clk 00:03:05]} 21. Rxa6 {[%clk 00:04:12]} {[%emt 00:00:01]}
Rxb2 {[%clk 00:03:02]} {[%emt 00:00:05]} 22. Rxd6 {[%clk 00:04:12]} {[%emt
00:00:02]} Be7 {[%clk 00:02:14]} {[%emt 00:00:51]} 23. Rd7 {[%clk 00:04:12]}
{[%emt 00:00:02]} Bc5 {[%clk 00:02:14]} 24. g3 {[%clk 00:04:05]} {[%emt
00:00:10]} g6 {[%clk 00:02:14]} {[%emt 00:00:01]} 25. Kg2 {[%clk 00:04:04]}
{[%emt 00:00:05]} Bd4 {[%clk 00:02:12]} {[%emt 00:00:05]} 26. Bc4 {[%clk
00:03:41]} {[%emt 00:00:26]} Rc2 {[%clk 00:02:09]} {[%emt 00:00:05]} 27. Bd5
{[%clk 00:03:41]} {[%emt 00:00:01]} Rb2 {[%clk 00:02:09]} 28. Bc4 {[%clk
00:03:41]} {[%emt 00:00:01]} Rc2 {[%clk 00:02:09]} 29. Bd5 {[%clk 00:03:41]}
1/2-1/2